[Event "Late-Titled-Tuesday-Blitz-January-16-2024"]
[Site "Chess.com"]
[Date "2024.01.16"]
[Round "1"]
[White "FabianoCaruana"]
[Black "anasta10"]
[Result "1-0"]
[WhiteElo "3028"]
[BlackElo "2516"]
[TimeControl "180+1"]
[EndTime "14:04:53 PST"]
[Termination "FabianoCaruana won by resignation"]

1. c4 {[%clk 0:03:00.9]} 1... c5 {[%clk 0:02:52.3]} 2. b3 {[%clk 0:02:58.9]}
2... Nf6 {[%clk 0:02:51.7]} 3. Bb2 {[%clk 0:02:58.1]} 3... Nc6 {[%clk
0:02:51.3]} 4. g3 {[%clk 0:02:58.4]} 4... g6 {[%clk 0:02:50.2]} 5. Bg2 {[%clk
0:02:58.6]} 5... Bg7 {[%clk 0:02:50.2]} 6. e3 {[%clk 0:02:59.2]} 6... O-O {[%clk
0:02:50.2]} 7. Ne2 {[%clk 0:02:59.4]} 7... b6 {[%clk 0:02:42.2]} 8. O-O {[%clk
0:02:59.3]} 8... Bb7 {[%clk 0:02:42.4]} 9. Nbc3 {[%clk 0:02:59]} 9... e6 {[%clk
0:02:41.5]} 10. d4 {[%clk 0:02:58.5]} 10... cxd4 {[%clk 0:02:41.6]} 11. Nxd4
{[%clk 0:02:57.9]} 11... Rc8 {[%clk 0:02:34.9]} 12. Rc1 {[%clk 0:02:57]} 12...
Qc7 {[%clk 0:02:28.9]} 13. Ncb5 {[%clk 0:02:51.3]} 13... Qb8 {[%clk 0:02:26.9]}
14. Ba3 {[%clk 0:02:51.7]} 14... Nxd4 {[%clk 0:01:56.8]} 15. exd4 {[%clk
0:02:48.6]} 15... Bxg2 {[%clk 0:01:55.8]} 16. Kxg2 {[%clk 0:02:49.2]} 16... Rfd8
{[%clk 0:01:48]} 17. Qf3 {[%clk 0:02:47.2]} 17... d6 {[%clk 0:01:39]} 18. Nc3
{[%clk 0:02:37.8]} 18... a6 {[%clk 0:01:35.1]} 19. Rfe1 {[%clk 0:02:31.9]} 19...
b5 {[%clk 0:01:35]} 20. cxb5 {[%clk 0:02:31]} 20... axb5 {[%clk 0:01:35.9]} 21.
Bb4 {[%clk 0:02:31.4]} 21... d5 {[%clk 0:00:40.9]} 22. Be7 {[%clk 0:02:29.9]}
22... Ne4 {[%clk 0:00:31.8]} 23. Bxd8 {[%clk 0:02:27.8]} 23... Nxc3 {[%clk
0:00:31.9]} 24. Rxc3 {[%clk 0:02:26.4]} 24... Rxd8 {[%clk 0:00:32.4]} 25. Rd1
{[%clk 0:02:22.7]} 25... Qa7 {[%clk 0:00:32.1]} 26. Qd3 {[%clk 0:02:19.8]} 26...
Qxa2 {[%clk 0:00:26.7]} 27. Qxb5 {[%clk 0:02:18.4]} 27... Qb2 {[%clk 0:00:24.8]}
28. Qd3 {[%clk 0:02:16.5]} 28... Rb8 {[%clk 0:00:24.2]} 29. Rdc1 {[%clk
0:02:15.1]} 29... h5 {[%clk 0:00:22.9]} 30. Rc8+ {[%clk 0:02:11.9]} 30... Rxc8
{[%clk 0:00:23.2]} 31. Rxc8+ {[%clk 0:02:12.6]} 31... Kh7 {[%clk 0:00:24]} 32.
Rc7 {[%clk 0:02:12.6]} 32... Kg8 {[%clk 0:00:17.2]} 33. Qf3 {[%clk 0:02:12.5]}
1-0

[Event "Late-Titled-Tuesday-Blitz-January-16-2024"]
[Site "Chess.com"]
[Date "2024.01.16"]
[Round "1"]
[White "GHANDEEVAM2003"]
[Black "KamilGrycel"]
[Result "1-0"]
[WhiteElo "2995"]
[BlackElo "2512"]
[TimeControl "180+1"]
[EndTime "14:04:53 PST"]
[Termination "GHANDEEVAM2003 won by checkmate"]

1. c4 {[%clk 0:02:52.8]} 1... d6 {[%clk 0:02:59.4]} 2. d4 {[%clk 0:02:52]} 2...
e5 {[%clk 0:02:59.3]} 3. Nf3 {[%clk 0:02:51.5]} 3... e4 {[%clk 0:02:59.1]} 4.
Ng5 {[%clk 0:02:51.5]} 4... f5 {[%clk 0:02:58.8]} 5. Nc3 {[%clk 0:02:51.5]} 5...
c6 {[%clk 0:02:55.8]} 6. h4 {[%clk 0:02:50.3]} 6... Nf6 {[%clk 0:02:53.8]} 7.
Bf4 {[%clk 0:02:48.4]} 7... h6 {[%clk 0:02:50.4]} 8. Nh3 {[%clk 0:02:48.1]} 8...
Be7 {[%clk 0:02:49.8]} 9. e3 {[%clk 0:02:47.4]} 9... d5 {[%clk 0:02:45.4]} 10.
Qb3 {[%clk 0:02:40]} 10... O-O {[%clk 0:02:43.1]} 11. cxd5 {[%clk 0:02:35.9]}
11... cxd5 {[%clk 0:02:42.6]} 12. Be5 {[%clk 0:02:28.6]} 12... Kh7 {[%clk
0:02:03.2]} 13. Nf4 {[%clk 0:02:16.5]} 13... Ng4 {[%clk 0:01:56]} 14. Ncxd5
{[%clk 0:02:16.5]} 14... Nxe5 {[%clk 0:01:51.3]} 15. dxe5 {[%clk 0:02:17.4]}
15... Nc6 {[%clk 0:01:36.5]} 16. O-O-O {[%clk 0:02:15.5]} 16... Qa5 {[%clk
0:01:21.1]} 17. Kb1 {[%clk 0:02:09.4]} 17... Rd8 {[%clk 0:01:11.2]} 18. Bb5
{[%clk 0:02:05.9]} 18... Bf8 {[%clk 0:01:03.7]} 19. Nf6+ {[%clk 0:01:58.2]}
19... gxf6 {[%clk 0:00:59.7]} 20. Qf7+ {[%clk 0:01:58.7]} 20... Bg7 {[%clk
0:00:56.4]} 21. Nh5 {[%clk 0:01:59.2]} 21... Rg8 {[%clk 0:00:14.9]} 22. Nxf6+
{[%clk 0:01:59.1]} 22... Kh8 {[%clk 0:00:14.8]} 23. Qxg8# {[%clk 0:02:00]} 1-0

[Event "Late-Titled-Tuesday-Blitz-January-16-2024"]
[Site "Chess.com"]
[Date "2024.01.16"]
[Round "1"]
[White "sebastianmarinp"]
[Black "MightyGMpretender"]
[Result "0-1"]
[WhiteElo "2450"]
[BlackElo "2819"]
[TimeControl "180+1"]
[EndTime "14:05:04 PST"]
[Termination "MightyGMpretender won by resignation"]

1. d4 {[%clk 0:03:00.9]} 1... Nf6 {[%clk 0:02:57.8]} 2. c4 {[%clk 0:02:59.6]}
2... g6 {[%clk 0:02:58.2]} 3. Nc3 {[%clk 0:02:55.6]} 3... Bg7 {[%clk 0:02:58.4]}
4. g3 {[%clk 0:02:54.4]} 4... O-O {[%clk 0:02:58]} 5. Bg2 {[%clk 0:02:54.6]}
5... d6 {[%clk 0:02:57.6]} 6. Nf3 {[%clk 0:02:51.5]} 6... Bf5 {[%clk 0:02:58.2]}
7. O-O {[%clk 0:02:49.8]} 7... Ne4 {[%clk 0:02:58.2]} 8. Qb3 {[%clk 0:02:36.3]}
8... Nxc3 {[%clk 0:02:53.4]} 9. Qxc3 {[%clk 0:02:37.2]} 9... Nc6 {[%clk
0:02:42.9]} 10. Rd1 {[%clk 0:02:28.7]} 10... Qd7 {[%clk 0:02:35.8]} 11. Bg5
{[%clk 0:02:16.7]} 11... Rfe8 {[%clk 0:02:33.2]} 12. Rac1 {[%clk 0:02:14.1]}
12... Be4 {[%clk 0:02:27.9]} 13. Qe3 {[%clk 0:02:03.6]} 13... Bf5 {[%clk
0:02:09.2]} 14. a3 {[%clk 0:01:58.9]} 14... Rab8 {[%clk 0:02:04.9]} 15. b4
{[%clk 0:01:55.7]} 15... a6 {[%clk 0:02:02.6]} 16. d5 {[%clk 0:01:52.8]} 16...
Nd8 {[%clk 0:02:02.3]} 17. Nd4 {[%clk 0:01:49.4]} 17... Bh3 {[%clk 0:02:02.7]}
18. Ne6 {[%clk 0:01:35.9]} 18... Bxe6 {[%clk 0:01:57.2]} 19. dxe6 {[%clk
0:01:33.2]} 19... Qxe6 {[%clk 0:01:50.5]} 20. Qa7 {[%clk 0:01:26]} 20... Qc8
{[%clk 0:01:47]} 21. c5 {[%clk 0:01:02.7]} 21... Nc6 {[%clk 0:01:45.2]} 22. Bxc6
{[%clk 0:01:00.5]} 22... bxc6 {[%clk 0:01:44.8]} 23. cxd6 {[%clk 0:00:59.6]}
23... cxd6 {[%clk 0:01:39.8]} 24. Rc2 {[%clk 0:00:45.4]} 24... Qf5 {[%clk
0:01:39.3]} 0-1

[Event "Late-Titled-Tuesday-Blitz-January-16-2024"]
[Site "Chess.com"]
[Date "2024.01.16"]
[Round "1"]
[White "DavidGavrilescu18"]
[Black "RCone"]
[Result "1-0"]
[WhiteElo "2767"]
[BlackElo "2428"]
[TimeControl "180+1"]
[EndTime "14:05:04 PST"]
[Termination "DavidGavrilescu18 won on time"]

1. e4 {[%clk 0:03:00.9]} 1... d6 {[%clk 0:02:55]} 2. d4 {[%clk 0:03:00.8]} 2...
Nf6 {[%clk 0:02:53.8]} 3. Bd3 {[%clk 0:03:01]} 3... g6 {[%clk 0:02:52.1]} 4. Nf3
{[%clk 0:03:01.3]} 4... Bg7 {[%clk 0:02:51.6]} 5. O-O {[%clk 0:03:01.5]} 5...
Bg4 {[%clk 0:02:50.8]} 6. Nbd2 {[%clk 0:03:01]} 6... Nc6 {[%clk 0:02:49.5]} 7.
h3 {[%clk 0:03:01]} 7... Bxf3 {[%clk 0:02:42.7]} 8. Nxf3 {[%clk 0:03:01.9]} 8...
e5 {[%clk 0:02:42.4]} 9. c3 {[%clk 0:03:01.4]} 9... O-O {[%clk 0:02:41.9]} 10.
Re1 {[%clk 0:03:02]} 10... h6 {[%clk 0:02:40.5]} 11. a4 {[%clk 0:03:00.9]} 11...
a5 {[%clk 0:02:39.7]} 12. Bb5 {[%clk 0:02:57.9]} 12... exd4 {[%clk 0:02:14.4]}
13. cxd4 {[%clk 0:02:58.8]} 13... Nb4 {[%clk 0:01:58.6]} 14. Bd2 {[%clk
0:02:56.3]} 14... c6 {[%clk 0:01:58.2]} 15. Bf1 {[%clk 0:02:56.1]} 15... Qb6
{[%clk 0:01:46.5]} 16. Ra3 {[%clk 0:02:52.9]} 16... Rfe8 {[%clk 0:01:45.5]} 17.
Rae3 {[%clk 0:02:52.7]} 17... d5 {[%clk 0:01:34.5]} 18. e5 {[%clk 0:02:48]}
18... Ne4 {[%clk 0:01:33.5]} 19. Bc3 {[%clk 0:02:45.7]} 19... Rad8 {[%clk
0:01:11.5]} 20. Nd2 {[%clk 0:02:43.3]} 20... Nxd2 {[%clk 0:00:42.4]} 21. Qxd2
{[%clk 0:02:44.2]} 21... h5 {[%clk 0:00:42.2]} 22. Rf3 {[%clk 0:02:36.5]} 22...
Re6 {[%clk 0:00:36.7]} 23. Rg3 {[%clk 0:02:31.9]} 23... Kh7 {[%clk 0:00:35.4]}
24. Kh1 {[%clk 0:02:31.4]} 24... Bh6 {[%clk 0:00:34.7]} 25. f4 {[%clk
0:02:29.3]} 25... c5 {[%clk 0:00:33.8]} 26. Qf2 {[%clk 0:02:28.5]} 26... cxd4
{[%clk 0:00:30.9]} 27. Bxd4 {[%clk 0:02:29.4]} 27... Qc7 {[%clk 0:00:25.7]} 28.
f5 {[%clk 0:02:29.8]} 28... gxf5 {[%clk 0:00:20.3]} 29. Qxf5+ {[%clk 0:02:30.7]}
29... Rg6 {[%clk 0:00:20.3]} 30. Rf3 {[%clk 0:02:24]} 30... Kg8 {[%clk
0:00:14.6]} 31. e6 {[%clk 0:02:22.2]} 31... Rxe6 {[%clk 0:00:13.1]} 32. Rxe6
{[%clk 0:02:22.1]} 32... fxe6 {[%clk 0:00:13.3]} 33. Qxe6+ {[%clk 0:02:21.5]}
1-0

[Event "Late-Titled-Tuesday-Blitz-January-16-2024"]
[Site "Chess.com"]
[Date "2024.01.16"]
[Round "1"]
[White "GAusal"]
[Black "Caterpiller35"]
[Result "0-1"]
[WhiteElo "2289"]
[BlackElo "2625"]
[TimeControl "180+1"]
[EndTime "14:05:14 PST"]
[Termination "Caterpiller35 won by resignation"]

1. d4 {[%clk 0:03:00.3]} 1... Nf6 {[%clk 0:02:59.7]} 2. Nf3 {[%clk 0:03:00]}
2... e6 {[%clk 0:02:55.4]} 3. Bg5 {[%clk 0:02:59.3]} 3... c5 {[%clk 0:02:55.3]}
4. e3 {[%clk 0:02:59.6]} 4... b6 {[%clk 0:02:55.5]} 5. c3 {[%clk 0:02:59.9]}
5... Bb7 {[%clk 0:02:55.9]} 6. Nbd2 {[%clk 0:02:59.1]} 6... Be7 {[%clk
0:02:56.1]} 7. Be2 {[%clk 0:02:59.3]} 7... O-O {[%clk 0:02:55.5]} 8. O-O {[%clk
0:02:58.9]} 8... cxd4 {[%clk 0:02:54.5]} 9. exd4 {[%clk 0:02:58.7]} 9... Nd5
{[%clk 0:02:54.7]} 10. Bxe7 {[%clk 0:02:58]} 10... Qxe7 {[%clk 0:02:55.6]} 11.
Re1 {[%clk 0:02:56.3]} 11... d6 {[%clk 0:02:54.1]} 12. Bd3 {[%clk 0:02:56.2]}
12... Nd7 {[%clk 0:02:51]} 13. c4 {[%clk 0:02:54.9]} 13... Nf4 {[%clk
0:02:50.6]} 14. Bf1 {[%clk 0:02:54.1]} 14... d5 {[%clk 0:02:35.7]} 15. g3 {[%clk
0:02:50.2]} 15... Ng6 {[%clk 0:02:34.6]} 16. b3 {[%clk 0:02:49]} 16... dxc4
{[%clk 0:02:34.1]} 17. Nxc4 {[%clk 0:02:47.5]} 17... Rfd8 {[%clk 0:02:29.7]} 18.
Bg2 {[%clk 0:02:47.2]} 18... Rac8 {[%clk 0:02:25.3]} 19. Qe2 {[%clk 0:02:46.4]}
19... Nf6 {[%clk 0:02:21]} 20. Rad1 {[%clk 0:02:44.6]} 20... Nd5 {[%clk
0:02:18.5]} 21. Nce5 {[%clk 0:02:42.6]} 21... Nc3 {[%clk 0:02:12.7]} 22. Qd3
{[%clk 0:02:38.4]} 22... Nxd1 {[%clk 0:02:11.5]} 23. Nxg6 {[%clk 0:02:36.7]}
23... hxg6 {[%clk 0:02:09.5]} 24. Qxd1 {[%clk 0:02:35.3]} 24... Bd5 {[%clk
0:02:03.5]} 25. Qe2 {[%clk 0:02:30.3]} 25... Qb7 {[%clk 0:02:00.2]} 26. Nh4
{[%clk 0:02:27.7]} 26... Bxg2 {[%clk 0:01:51.2]} 27. Nxg2 {[%clk 0:02:27.4]}
27... Qd5 {[%clk 0:01:51.1]} 28. Rd1 {[%clk 0:02:23.6]} 28... e5 {[%clk
0:01:50.5]} 29. Ne3 {[%clk 0:02:20.4]} 29... Qe4 {[%clk 0:01:48.9]} 30. d5
{[%clk 0:02:20.1]} 30... Rc5 {[%clk 0:01:40.6]} 31. Qa6 {[%clk 0:02:17.9]} 31...
Rd7 {[%clk 0:01:30.1]} 32. b4 {[%clk 0:02:14.3]} 32... Qxb4 {[%clk 0:01:27.4]}
33. Qe2 {[%clk 0:02:06.8]} 33... f5 {[%clk 0:01:24.7]} 34. h4 {[%clk 0:02:04.7]}
34... f4 {[%clk 0:01:21.4]} 35. Ng4 {[%clk 0:02:04.5]} 35... Rcxd5 {[%clk
0:01:19]} 36. Rxd5 {[%clk 0:02:03.9]} 36... Rxd5 {[%clk 0:01:19.9]} 37. Nxe5
{[%clk 0:01:55]} 37... fxg3 {[%clk 0:01:16.6]} 38. f4 {[%clk 0:01:53.3]} 38...
Qxf4 {[%clk 0:01:14.5]} 39. Nxg6 {[%clk 0:01:46.6]} 39... Rd1+ {[%clk
0:01:10.6]} 40. Kg2 {[%clk 0:01:39.3]} 40... Qf2+ {[%clk 0:01:08.7]} 41. Qxf2
{[%clk 0:01:39]} 41... gxf2 {[%clk 0:01:09.6]} 42. Kxf2 {[%clk 0:01:39.7]} 42...
Rd2+ {[%clk 0:01:09.9]} 43. Ke3 {[%clk 0:01:39.3]} 43... Rxa2 {[%clk 0:01:10.8]}
44. Ne7+ {[%clk 0:01:38.8]} 44... Kf7 {[%clk 0:01:10.8]} 45. Nc6 {[%clk
0:01:39.7]} 45... a5 {[%clk 0:01:09.3]} 46. h5 {[%clk 0:01:40.6]} 46... a4
{[%clk 0:01:08.9]} 0-1

[Event "Late-Titled-Tuesday-Blitz-January-16-2024"]
[Site "Chess.com"]
[Date "2024.01.16"]
[Round "1"]
[White "Mariia89"]
[Black "nindjaxx8"]
[Result "0-1"]
[WhiteElo "2194"]
[BlackElo "2576"]
[TimeControl "180+1"]
[EndTime "14:05:16 PST"]
[Termination "nindjaxx8 won on time"]

1. d4 {[%clk 0:02:59.6]} 1... d5 {[%clk 0:02:59.9]} 2. c4 {[%clk 0:02:59.4]}
2... e6 {[%clk 0:02:59.4]} 3. Nc3 {[%clk 0:02:59.3]} 3... Nf6 {[%clk 0:02:59.3]}
4. Nf3 {[%clk 0:02:59]} 4... Be7 {[%clk 0:02:58.4]} 5. Bg5 {[%clk 0:02:59.3]}
5... O-O {[%clk 0:02:53.8]} 6. e3 {[%clk 0:02:58.5]} 6... b6 {[%clk 0:02:52.8]}
7. cxd5 {[%clk 0:02:58.2]} 7... Nxd5 {[%clk 0:02:50.9]} 8. Bxe7 {[%clk
0:02:58.2]} 8... Nxe7 {[%clk 0:02:49.6]} 9. Bd3 {[%clk 0:02:57.8]} 9... Nd7
{[%clk 0:02:42.5]} 10. O-O {[%clk 0:02:41.1]} 10... Bb7 {[%clk 0:02:41.3]} 11.
e4 {[%clk 0:02:41.1]} 11... c5 {[%clk 0:02:38.2]} 12. Qe2 {[%clk 0:02:35.2]}
12... cxd4 {[%clk 0:02:35.1]} 13. Nxd4 {[%clk 0:02:35.3]} 13... Nc5 {[%clk
0:02:35.1]} 14. Ncb5 {[%clk 0:01:14.6]} 14... e5 {[%clk 0:02:27.6]} 15. Bc4
{[%clk 0:01:02.6]} 15... exd4 {[%clk 0:02:26]} 16. Rad1 {[%clk 0:01:01.8]} 16...
Ng6 {[%clk 0:02:21.5]} 17. Rxd4 {[%clk 0:01:00.2]} 17... Qg5 {[%clk 0:02:21.7]}
18. Nd6 {[%clk 0:00:50.2]} 18... Bc6 {[%clk 0:02:09.7]} 19. Qf3 {[%clk
0:00:48.5]} 19... Ne5 {[%clk 0:02:08.5]} 20. Qf5 {[%clk 0:00:26.2]} 20... Qxf5
{[%clk 0:02:03.7]} 21. Nxf5 {[%clk 0:00:25.8]} 21... Nxc4 {[%clk 0:02:02.8]} 22.
Ne7+ {[%clk 0:00:23.1]} 22... Kh8 {[%clk 0:02:02.4]} 23. Nxc6 {[%clk 0:00:24]}
23... Nxb2 {[%clk 0:02:00.8]} 24. Rb1 {[%clk 0:00:06.4]} 24... Nbd3 {[%clk
0:01:59.2]} 25. g3 {[%clk 0:00:05.2]} 25... Rfc8 {[%clk 0:01:56.7]} 26. Ne7
{[%clk 0:00:04.4]} 26... Rd8 {[%clk 0:01:57]} 0-1

[Event "Late-Titled-Tuesday-Blitz-January-16-2024"]
[Site "Chess.com"]
[Date "2024.01.16"]
[Round "1"]
[White "danshev16"]
[Black "LevonAronian"]
[Result "0-1"]
[WhiteElo "2524"]
[BlackElo "3104"]
[TimeControl "180+1"]
[EndTime "14:05:19 PST"]
[Termination "LevonAronian won by resignation"]

1. d3 {[%clk 0:02:55.8]} 1... d5 {[%clk 0:02:59]} 2. c3 {[%clk 0:02:56.7]} 2...
e5 {[%clk 0:02:58.8]} 3. Nd2 {[%clk 0:02:57.1]} 3... c5 {[%clk 0:02:57.9]} 4. h3
{[%clk 0:02:52.3]} 4... Nc6 {[%clk 0:02:57.8]} 5. g4 {[%clk 0:02:52.1]} 5... h5
{[%clk 0:02:57.2]} 6. Bg2 {[%clk 0:02:50.3]} 6... hxg4 {[%clk 0:02:56.4]} 7.
hxg4 {[%clk 0:02:51.2]} 7... Rxh1 {[%clk 0:02:55.3]} 8. Bxh1 {[%clk 0:02:52.1]}
8... Be6 {[%clk 0:02:48.7]} 9. e4 {[%clk 0:02:45.3]} 9... d4 {[%clk 0:02:48.3]}
10. Nf1 {[%clk 0:02:31.3]} 10... dxc3 {[%clk 0:02:39.3]} 11. bxc3 {[%clk
0:02:30.6]} 11... c4 {[%clk 0:02:39.7]} 12. Ne3 {[%clk 0:02:05.8]} 12... Qxd3
{[%clk 0:02:36.4]} 13. Qxd3 {[%clk 0:02:04]} 13... cxd3 {[%clk 0:02:37.3]} 14.
Nd5 {[%clk 0:02:03]} 14... O-O-O {[%clk 0:02:36]} 15. g5 {[%clk 0:01:59.5]}
15... Bc5 {[%clk 0:02:25.8]} 16. Nf3 {[%clk 0:01:54.3]} 16... Nge7 {[%clk
0:02:18.4]} 17. c4 {[%clk 0:01:50.3]} 17... Rh8 {[%clk 0:02:07.2]} 18. Bg2
{[%clk 0:01:48]} 18... Bh3 {[%clk 0:02:06.8]} 19. Kf1 {[%clk 0:01:43.5]} 19...
Ng6 {[%clk 0:02:01.3]} 20. Be3 {[%clk 0:01:37.8]} 20... Bxe3 {[%clk 0:01:52.7]}
21. fxe3 {[%clk 0:01:38.7]} 21... Bxg2+ {[%clk 0:01:50]} 22. Kxg2 {[%clk
0:01:39.6]} 22... Nh4+ {[%clk 0:01:50.2]} 23. Nxh4 {[%clk 0:01:33.3]} 23... Rxh4
{[%clk 0:01:49.8]} 24. Kf3 {[%clk 0:01:31.4]} 24... Rh2 {[%clk 0:01:49.5]} 25.
Rd1 {[%clk 0:01:30.3]} 25... Rxa2 {[%clk 0:01:40.3]} 26. Rxd3 {[%clk 0:01:30.3]}
26... Rc2 {[%clk 0:01:37.6]} 27. g6 {[%clk 0:01:26]} 27... fxg6 {[%clk 0:01:36]}
28. Rd1 {[%clk 0:01:17.2]} 28... Rxc4 {[%clk 0:01:35.4]} 29. Rg1 {[%clk
0:01:17.7]} 29... b5 {[%clk 0:01:31.2]} 30. Rxg6 {[%clk 0:01:16.7]} 30... b4
{[%clk 0:01:31.3]} 31. Rxg7 {[%clk 0:01:11.6]} 31... b3 {[%clk 0:01:31]} 32. Rg1
{[%clk 0:01:11.6]} 32... b2 {[%clk 0:01:25.9]} 33. Rb1 {[%clk 0:01:11.6]} 33...
Rc2 {[%clk 0:01:26]} 34. Kg4 {[%clk 0:01:10.6]} 34... Kb7 {[%clk 0:01:23.8]} 35.
Kf5 {[%clk 0:01:10.6]} 35... a5 {[%clk 0:01:24.2]} 36. Nc3 {[%clk 0:01:02.4]}
36... Rxc3 {[%clk 0:01:24]} 37. Rxb2+ {[%clk 0:01:02.8]} 37... Kc7 {[%clk
0:01:24.5]} 38. Re2 {[%clk 0:01:00.2]} 38... a4 {[%clk 0:01:24.5]} 39. Ke6
{[%clk 0:01:00.7]} 39... a3 {[%clk 0:01:24.8]} 40. Ra2 {[%clk 0:01:00.7]} 40...
Rxe3 {[%clk 0:01:24.7]} 41. Kd5 {[%clk 0:00:59.1]} 41... Nb4+ {[%clk 0:01:24.4]}
0-1

[Event "Late-Titled-Tuesday-Blitz-January-16-2024"]
[Site "Chess.com"]
[Date "2024.01.16"]
[Round "1"]
[White "Felix-Rose"]
[Black "NMJeevanK"]
[Result "0-1"]
[WhiteElo "2239"]
[BlackElo "2590"]
[TimeControl "180+1"]
[EndTime "14:05:20 PST"]
[Termination "NMJeevanK won on time"]

1. e4 {[%clk 0:02:59.1]} 1... g6 {[%clk 0:02:59.4]} 2. d4 {[%clk 0:02:59]} 2...
d6 {[%clk 0:02:58.8]} 3. Nc3 {[%clk 0:02:56.1]} 3... Bg7 {[%clk 0:02:59]} 4. Nf3
{[%clk 0:02:56.1]} 4... Nf6 {[%clk 0:02:58.6]} 5. h3 {[%clk 0:02:56.4]} 5... O-O
{[%clk 0:02:58.2]} 6. Be3 {[%clk 0:02:56]} 6... Nc6 {[%clk 0:02:53]} 7. Be2
{[%clk 0:02:54.9]} 7... e5 {[%clk 0:02:53.2]} 8. O-O {[%clk 0:02:54.3]} 8...
exd4 {[%clk 0:02:51.9]} 9. Nxd4 {[%clk 0:02:54.2]} 9... Re8 {[%clk 0:02:50.8]}
10. Nxc6 {[%clk 0:02:44.6]} 10... bxc6 {[%clk 0:02:51.7]} 11. Bf3 {[%clk
0:02:44.2]} 11... Nd7 {[%clk 0:02:46]} 12. g3 {[%clk 0:02:35.9]} 12... Ne5
{[%clk 0:02:44.2]} 13. Bg2 {[%clk 0:02:36]} 13... Nc4 {[%clk 0:02:44.5]} 14. Bc1
{[%clk 0:02:26.5]} 14... Rb8 {[%clk 0:02:41.3]} 15. Na4 {[%clk 0:01:17.2]} 15...
Ba6 {[%clk 0:02:40.7]} 16. Re1 {[%clk 0:01:14.1]} 16... Nxb2 {[%clk 0:02:21.5]}
17. Bxb2 {[%clk 0:01:07]} 17... Bxb2 {[%clk 0:02:22.4]} 18. Nxb2 {[%clk
0:01:06.8]} 18... Rxb2 {[%clk 0:02:23.3]} 19. e5 {[%clk 0:00:55.2]} 19... dxe5
{[%clk 0:02:17.5]} 20. Qc1 {[%clk 0:00:46.6]} 20... Qd4 {[%clk 0:02:11]} 21.
Bxc6 {[%clk 0:00:21.2]} 21... Reb8 {[%clk 0:02:10.2]} 22. Bg2 {[%clk 0:00:08.9]}
22... Qc3 {[%clk 0:02:06.3]} 23. Re3 {[%clk 0:00:04.4]} 23... Qxc2 {[%clk
0:01:55.3]} 24. Qxc2 {[%clk 0:00:04.7]} 24... Rxc2 {[%clk 0:01:56.2]} 25. Rxe5
{[%clk 0:00:05.1]} 25... Rbb2 {[%clk 0:01:56.5]} 26. Rf1 {[%clk 0:00:03.2]}
26... Bxf1 {[%clk 0:01:55.9]} 0-1

[Event "Late-Titled-Tuesday-Blitz-January-16-2024"]
[Site "Chess.com"]
[Date "2024.01.16"]
[Round "1"]
[White "zverr1"]
[Black "Beca95"]
[Result "0-1"]
[WhiteElo "2508"]
[BlackElo "2966"]
[TimeControl "180+1"]
[EndTime "14:05:21 PST"]
[Termination "Beca95 won by checkmate"]

1. e4 {[%clk 0:03:00.9]} 1... e5 {[%clk 0:02:58.5]} 2. Nf3 {[%clk 0:03:00.3]}
2... Nc6 {[%clk 0:02:58.9]} 3. Bc4 {[%clk 0:03:00.3]} 3... Nf6 {[%clk
0:02:58.1]} 4. Ng5 {[%clk 0:03:00.5]} 4... d5 {[%clk 0:02:57.6]} 5. exd5 {[%clk
0:03:01.4]} 5... b5 {[%clk 0:02:57.7]} 6. Bf1 {[%clk 0:02:55.4]} 6... Nxd5
{[%clk 0:02:55.6]} 7. Bxb5 {[%clk 0:02:41.9]} 7... Bb7 {[%clk 0:02:54.1]} 8. d4
{[%clk 0:02:25.6]} 8... exd4 {[%clk 0:02:53.2]} 9. Qxd4 {[%clk 0:02:20.9]} 9...
Qd7 {[%clk 0:02:50.5]} 10. Bxc6 {[%clk 0:02:02.9]} 10... Qxc6 {[%clk 0:02:39.9]}
11. Nf3 {[%clk 0:01:45.5]} 11... O-O-O {[%clk 0:02:37.8]} 12. O-O {[%clk
0:01:34.8]} 12... Bc5 {[%clk 0:02:35.8]} 13. Qg4+ {[%clk 0:01:34.2]} 13... Kb8
{[%clk 0:02:36.3]} 14. Nc3 {[%clk 0:01:18.8]} 14... h5 {[%clk 0:02:33.9]} 15.
Qf5 {[%clk 0:01:00.5]} 15... g6 {[%clk 0:02:19.9]} 16. Qh3 {[%clk 0:00:41]}
16... f6 {[%clk 0:02:10.9]} 17. Nxd5 {[%clk 0:00:37.9]} 17... Rxd5 {[%clk
0:02:11.8]} 18. Be3 {[%clk 0:00:32.5]} 18... g5 {[%clk 0:01:58.9]} 19. Qg3
{[%clk 0:00:21.5]} 19... Bd6 {[%clk 0:01:57.8]} 20. Qh3 {[%clk 0:00:13]} 20...
g4 {[%clk 0:01:57.5]} 21. Qh4 {[%clk 0:00:08.8]} 21... gxf3 {[%clk 0:01:57.2]}
22. g3 {[%clk 0:00:07.6]} 22... Qd7 {[%clk 0:01:52.8]} 23. Qxf6 {[%clk
0:00:07.1]} 23... Qh3 {[%clk 0:01:48.8]} 24. Qxh8+ {[%clk 0:00:07.2]} 24... Bc8
{[%clk 0:01:48.2]} 25. Bxa7+ {[%clk 0:00:07.8]} 25... Kb7 {[%clk 0:01:47.6]} 26.
Kh1 {[%clk 0:00:02.5]} 26... Qg2# {[%clk 0:01:46.8]} 0-1